Cogmind - Beta 16.1 @@@ ROGUE MODE // 2026.02.22 @ 11:28:56 Player: Gamma Result: Destroyed by Z-Imprinter with Zionite Laser-M Performance ------------- Evolutions (1) 500 Regions Visited (5) 1000 Robots Destroyed (51) 255 Value Destroyed (1276) 1276 Prototype IDs (1) 20 Alien Tech Used (0) 0 Bonus (0) 0 TOTAL SCORE: 3051 Bonus ------- None Cogmind --------- Core Integrity 0/400 Matter 151/300 Energy 241/265 System Corruption 0% Temperature Warning (302) Movement Treading (480) Ox4 Location -7/Deep Caves Parts ------- > --- POWER (1) -------- Improved Ion Engine > --- PROPULSION (3) --- Light Treads > --- UTILITY (3) ------ Heat Sink Huge Storage Unit Advanced Targeting Computer > --- WEAPON (2) ------- Assault Cannon (fused) Assault Cannon > --- INVENTORY (25) --- Ion Engine Light Treads Light Treads High-capacity Storage Unit Faulty Spectral Analyzer 0b10 Decoder Chip [Generic] Advanced Targeting Computer Faulty Experimental Targeting Computer Faulty Experimental Target Analyzer Weapon Cycler Shield Generator Hacking Drone Bay Plasma Cannon Heavy Ion Cannon Assault Cannon EMP Blaster EMP Blaster EMP Blaster Rocket Launcher Mini Grenade Launcher Plasma Cutter CR-A16's Pointy Stick Peak State ------------ > --- POWER ------------ Improved Ion Engine > --- PROPULSION ------- Light Treads Light Treads Light Treads > --- UTILITY ---------- Huge Storage Unit Advanced Targeting Computer Hardened Medium Armor Plating > --- WEAPON ----------- Assault Cannon Assault Cannon > --- INVENTORY -------- Ion Engine Light Treads Light Treads Light Treads Heat Sink High-capacity Storage Unit Spectral Analyzer Advanced Targeting Computer Experimental Targeting Computer Experimental Targeting Computer Experimental Target Analyzer Experimental Armor Integrity Analyzer Weapon Cycler Shield Generator Particle Cannon Heavy Assault Rifle Assault Cannon Assault Cannon EMP Blaster EMP Blaster EMP Blaster Rocket Launcher Mini Grenade Launcher Plasma Cutter Blade Saw [Rating: 26] Favorites ----------- Power Heavy Ion Engine Engine Heavy Ion Engine Propulsion Light Treads Treads Light Treads Leg Aluminum Leg Wheel Wheel Flight Unit Flight Unit Utility Huge Storage Unit Device Heat Sink Storage Huge Storage Unit Processor Advanced Targeting Computer Protection Light Armor Plating Weapon Assault Cannon Energy Gun Heavy EM Pulse Gun Ballistic Gun Assault Rifle Ballistic Cannon Assault Cannon Launcher EMP Blaster Special Weapon Mining Laser Slashing Weapon Blade Saw Build | -11 -10 -9 -9 -7 -7 ------- Run | Yrd Mat Mat Min Zio Dee Slots Evolved 2 | . . 2 . . . Power . | . . . . . . Propulsion 1 | . . 1 . . . Utility 1 | . . 1 . . . Weapon . | . . . . . . Parts Attached 49 | 6 9 19 11 3 1 Power 5 | 1 1 2 . 1 . Engine 5 | 1 1 2 . 1 . Core . | . . . . . . Reactor . | . . . . . . Propulsion 14 | 2 1 6 3 1 1 Treads 10 | 2 1 2 3 1 1 Leg 1 | . . 1 . . . Wheel 2 | . . 2 . . . Hover . | . . . . . . Flight 1 | . . 1 . . . Utility 13 | 1 3 6 2 1 . Device 5 | . 1 3 1 . . Storage 3 | 1 1 1 . . . Processor 2 | . . 2 . . . Hackware . | . . . . . . Protection 3 | . 1 . 1 1 . Artifact . | . . . . . . Weapon 17 | 2 4 5 6 . . Energy Gun 3 | . 1 2 . . . Energy Cannon . | . . . . . . Ballistic Gun 3 | 2 . 1 . . . Ballistic Cannon 6 | . 2 1 3 . . Launcher 3 | . . . 3 . . Special Weapon 1 | . 1 . . . . Impact Weapon . | . . . . . . Slashing Weapon 1 | . . 1 . . . Piercing Weapon . | . . . . . . Special Melee Weapon . | . . . . . . Unidentified Prototypes 1 | . . 1 . . . Corrupted Parts 2 | . . . . 2 . System Corruption 9 | . . . . 9 . Parts Lost 20 | . 3 8 4 . 5 Power 2 | . 1 1 . . . Propulsion 8 | . 1 2 2 . 3 Utility 5 | . . 3 1 . 1 Weapon 5 | . 1 2 1 . 1 Highest Loss Streak 5 | . 2 2 3 . 5 To Critical Strikes 1 | . . . 1 . . Average Backups 20 | 3 11 18 23 24 24 Power . | . . . 1 1 1 Propulsion 3 | 2 3 3 4 3 3 Utility 5 | . 2 2 4 8 10 Weapon 9 | . 4 10 12 10 9 Tool/Special . | . . . . . . Unused Backups 35 | . 3 4 3 6 19 Power 1 | . . . . . 1 Propulsion 4 | . 2 . . . 2 Utility 13 | . . 1 . 3 9 Weapon 16 | . 1 3 3 3 6 Tool/Special 1 | . . . . . 1 Average Slot Usage (%) 98 | . 99 94 99 100 100 Engine 11 | . 13 10 11 11 11 Treads 30 | . 28 24 32 33 33 Device 2 | . . 10 2 . . Storage 11 | . 14 11 11 11 11 Processor 7 | . . 5 11 11 11 Protection 8 | . 12 1 8 11 11 Energy Gun 2 | . . 12 . . . Ballistic Gun 3 | . 19 . . . . Ballistic Cannon 16 | . 6 7 21 22 22 Peak Build Rating 26 | 6 8 20 21 26 26 Average Rating 18 | 4 7 14 20 23 25 On Entrance 13 | . 6 8 19 21 26 Avg Prop Armor Cover (%) 5 | . . 5 . . . Naked Turns . | . . . . . . Heaviest Build 105 | 14 34 96 101 105 105 Greatest Support 60 | 40 40 60 60 60 60 Greatest Overweight (x) 1 | . . 1 1 1 1 Average Overweight (x) . | . . . 1 1 1 Largest Inventory Capacity 25 | 8 15 25 25 25 25 Average Capacity 21 | 7 13 20 25 25 25 Most Carried 25 | 6 15 25 25 25 25 Average Carried 20 | 2 11 18 23 24 24 Final Capacity 25 | 8 15 25 25 25 25 Final Carried 25 | 6 15 25 25 25 22 Class Distribution -------------------- 81% | Mutant 18% | Scavenger-Mutant Dominant Class ---------------- Mutant | -10/Materials Scavenger-Mutant | -9/Materials Mutant | -9/Mines Mutant | -7/Zion Mutant | -7/Deep Caves Resources | -11 -10 -9 -9 -7 -7 ----------- Run | Yrd Mat Mat Min Zio Dee Matter Collected 1690 | 172 425 574 450 69 . Remotely . | . . . . . . Salvage Created 1548 | . 521 687 340 . . Parts 102 | . 33 38 31 . . Haulers Intercepted 3 | . 1 2 . . . Recyclers Shooed . | . . . . . . Parts Field Recycled . | . . . . . . Retrieved Matter . | . . . . . . Parts Self-Destructed 2 | . . . . 2 . Prevented . | . . . . . . Parts Restored . | . . . . . . Kills | -11 -10 -9 -9 -7 -7 ------- Run | Yrd Mat Mat Min Zio Dee Combat Hostiles Destroyed 43 | . 13 20 10 . . Guns 21 | . 13 8 . . . Cannons 15 | . . 12 3 . . AOE 7 | . . . 7 . . Classes Destroyed 9 | . 3 2 4 . . Worker 1 | . . . 1 . . Builder 1 | . . . 1 . . Tunneler 2 | . . . 2 . . Hauler 3 | . 1 2 . . . Recycler 1 | . . 1 . . . Swarmer 15 | . 3 9 3 . . Grunt 22 | . 10 7 5 . . Brawler 1 | . . . 1 . . Sentry 5 | . . 4 1 . . Best Kill Streak 6 | . 4 6 5 . . Combat Bots Only 4 | . 4 3 3 . . Max Kills in Single Turn 4 | . 1 1 4 . . Gunslinging . | . . . . . . Exploded 3 | . . . 3 . . Melee . | . . . . . . Uniques/NPCs Destroyed . | . . . . . . Combat | -11 -10 -9 -9 -7 -7 -------- Run | Yrd Mat Mat Min Zio Dee Hostile Shots Fired 301 | . 89 119 47 4 42 Missed 73 | . 13 33 13 2 12 Hits 228 | . 76 86 34 2 30 Melee 5 | . . . 5 . . Projectile 223 | . 76 86 29 2 30 AOE 1 | . . 1 . . . Critical Strikes 6 | . 2 1 3 . . Damage Taken 3419 | . 883 984 521 71 960 Core 593 | . 184 110 78 22 199 Absorbed by Shields . | . . . . . . Regen/Repaired (Parts) 29 | . 29 . . . . Core Remaining (%) 63 | 100 26 . . . . Volleys Fired 141 | . 48 60 22 3 8 Largest 2 | . 2 2 2 2 2 Hottest 130 | . 100 130 90 74 74 Shots Fired 271 | . 93 117 39 6 16 Gun 128 | . 86 39 3 . . Cannon 130 | . 4 76 28 6 16 Launcher 8 | . . . 8 . . Special 5 | . 3 2 . . . Kinetic 223 | . 88 85 28 6 16 Thermal 5 | . 3 2 . . . Explosive 2 | . . . 2 . . Electromagnetic 41 | . 2 30 9 . . Robot Hit Streak 14 | . 14 13 13 1 6 Robot Miss Streak 3 | . 3 3 3 1 2 Penetration Max . | . . . . . . Secondary Targets 5 | . 4 1 . . . Max Gunslinging Chain 1 | . 1 1 . . . Shots Hit Robots 167 | . 57 70 24 3 13 Core Hits 83 | . 28 32 18 . 5 Critical Kills . | . . . . . . Critical Parts Destroyed . | . . . . . . Critical Strikes . | . . . . . . Melee Attacks 2 | . . 2 . . . Impact . | . . . . . . Slashing 2 | . . 2 . . . Piercing . | . . . . . . Sneak Attacks . | . . . . . . Combat Hostiles . | . . . . . . Follow-up Attacks . | . . . . . . Damage Inflicted 3321 | . 784 1142 1033 56 306 Guns 1181 | . 769 372 40 . . Cannons 1502 | . 15 744 381 56 306 Explosions 628 | . . 26 602 . . Melee . | . . . . . . Ramming 10 | . . . 10 . . Kinetic 2308 | . 772 793 381 56 306 Thermal 96 | . . 26 70 . . Explosive 251 | . . . 251 . . Electromagnetic 656 | . 12 323 321 . . Impact . | . . . . . . Slashing . | . . . . . . Piercing . | . . . . . . Highest Corruption 17 | . . . 8 17 . Average Corruption 8 | . . . 7 8 . Corruption Purged . | . . . . . . Corruption Blocked . | . . . . . . Effects 81 | . . . 72 9 . Message Errors 21 | . . . 17 4 . Matter Fused 24 | . . . 21 3 . Heat Flow Errors 4 | . . . 3 1 . Energy Discharges 12 | . . . 12 . . Parts Fused 5 | . . . 5 . . Data Loss (minor) 9 | . . . 8 1 . Data Loss (major) 3 | . . . 3 . . Misfires 3 | . . . 3 . . Overload Shots . | . . . . . . Overflow Damage 49 | . . 7 40 2 . Projectiles 9 | . . 7 . 2 . Explosions 40 | . . . 40 . . Melee . | . . . . . . Knockbacks 13 | . 1 7 3 1 1 Impact . | . . . . . . Kinetic 13 | . 1 7 3 1 1 Secondary . | . . . . . . Self-Inflicted Damage 106 | . . . 106 . . Shots 3 | . . . 3 . . Rammed 2 | . . . 2 . . Targets Rammed 2 | . . . 2 . . Kicked . | . . . . . . Crushed . | . . . . . . Highest Temperature 321 | . 64 25 186 101 321 Average Temperature 42 | . 15 8 55 35 165 Received Heat Transfer 990 | . 441 198 81 . 270 Siege Activations . | . . . . . . Martial Activations . | . . . . . . Shielding Activations . | . . . . . . Robots Disrupted . | . . . . . . Combat Hostiles . | . . . . . . Robots Corrupted . | . . . . . . Combat Hostiles . | . . . . . . Parts Fried 1 | . . 1 . . . Impact Corruptions . | . . . . . . Robots Melted . | . . . . . . Combat Hostiles . | . . . . . . Parts Melted . | . . . . . . Heat Transferred 150 | . . 50 100 . . Parts Sabotaged . | . . . . . . Parts Stolen . | . . . . . . Parts Stripped . | . . . . . . Power Chain Reactions 3 | . . 1 2 . . Alert | -11 -10 -9 -9 -7 -7 ------- Run | Yrd Mat Mat Min Zio Dee Maximum Alert Level . | . . . . . . Low Security (%) 100 | 100 100 100 100 . . Level 1 . | . . . . . . Level 2 . | . . . . . . Level 3 . | . . . . . . Level 4 . | . . . . . . Level 5 . | . . . . . . High Security . | . . . . . . Max Security . | . . . . . . Peak Influence 192 | . 111 192 125 . . Initial 31 | . . . 31 . . Average 40 | . 41 94 12 . . Influence Increases 1253 | . 394 584 275 . . Destroy 0b10 Robot/C 860 | . 260 400 200 . . Destroy 0b10 Robot/NC 40 | . 5 15 20 . . Destroy Leader 186 | . 52 104 30 . . Successful Hack 28 | . 12 16 . . . Disable Machine 30 | . . 30 . . . Destroy Structure 34 | . 5 4 25 . . Partial Spotted 15 | . . 15 . . . Lose Combat Pursuer 60 | . 60 . . . . Influence Decreases 1253 | . 394 502 357 . . Entered New Map 51 | . . . 51 . . Time Decay 1061 | . 364 422 275 . . Lost Part 141 | . 30 80 31 . . Squads Dispatched 4 | . 2 2 . . . Investigation 2 | . 1 1 . . . Extermination . | . . . . . . Reinforcement 2 | . 1 1 . . . Assault . | . . . . . . Garrison . | . . . . . . Intercept . | . . . . . . Searches Triggered . | . . . . . . Construction Impeded . | . . . . . . Haulers Reinforced . | . . . . . . Active Scanning Responses . | . . . . . . Cargo Convoy Interrupts . | . . . . . . Stealth | -11 -10 -9 -9 -7 -7 --------- Run | Yrd Mat Mat Min Zio Dee Distress Signals 3 | . 1 2 . . . Communications Jammed . | . . . . . . Distress Signals . | . . . . . . Times Spotted 76 | . 27 35 11 1 2 Peak Tracking Total 6 | . 4 6 3 1 3 Tactical Retreats 2 | . 2 . . . . Traps | -11 -10 -9 -9 -7 -7 ------- Run | Yrd Mat Mat Min Zio Dee Traps Triggered 2 | . 1 1 . . . Indirectly . | . . . . . . Trap Hack Attempts . | . . . . . . Triggered . | . . . . . . Disarmed . | . . . . . . Reprogrammed . | . . . . . . Reused . | . . . . . . Traps Extracted . | . . . . . . Installed . | . . . . . . Triggered . | . . . . . . Machines | -11 -10 -9 -9 -7 -7 ---------- Run | Yrd Mat Mat Min Zio Dee Machines Disabled 2 | . . 2 . . . Max in Single Turn 1 | . . 1 . . . Machines Repaired . | . . . . . . Machines Dismantled . | . . . . . . Machines Sabotaged . | . . . . . . Overloaded Fab Kills . | . . . . . . Hacking | -11 -10 -9 -9 -7 -7 --------- Run | Yrd Mat Mat Min Zio Dee Machines Accessed 15 | . 8 7 . . . Terminals 13 | . 7 6 . . . Fabricators . | . . . . . . Repair Stations 1 | . 1 . . . . Recycling Units 1 | . . 1 . . . Scanalyzers . | . . . . . . Garrison Access . | . . . . . . Total Hacks 33 | . 20 13 . . . Successful 18 | . 13 5 . . . Failed 14 | . 6 8 . . . Catastrophic 2 | . . 2 . . . Database Lockouts 1 | . 1 . . . . Manual 17 | . 10 3 . 4 . Terminals 28 | . 17 11 . . . Fabricators . | . . . . . . Repair Stations 3 | . 3 . . . . Recycling Units 2 | . . 2 . . . Scanalyzers . | . . . . . . Garrison Access . | . . . . . . Terminal Hacks 10 | . 6 4 . . . Part Schematic 1 | . 1 . . . . Branch Access Points 1 | . . 1 . . . Terminal Index 1 | . 1 . . . . Alert Level 1 | . 1 . . . . Locate Traps 1 | . 1 . . . . Hauler Manifests 2 | . 1 1 . . . Zone Layout 3 | . 1 2 . . . Fabricator Hacks . | . . . . . . Repair Station Hacks 2 | . 2 . . . . Scan Component 1 | . 1 . . . . Repair 1 | . 1 . . . . Recycling Unit Hacks . | . . . . . . Scanalyzer . | . . . . . . Garrison Access Hacks . | . . . . . . Unauthorized Hacks 6 | . 5 1 . . . Terminals 6 | . 5 1 . . . Track 3 | . 3 . . . . Botnet 3 | . 2 1 . . . Fabricators . | . . . . . . Repair Stations . | . . . . . . Recycling Units . | . . . . . . Scanalyzers . | . . . . . . Garrison Access . | . . . . . . Data Cores Recovered . | . . . . . . Used . | . . . . . . Hacking Detections 13 | . 8 5 . . . Full Trace Events . | . . . . . . Feedback Events . | . . . . . . Feedback Blocked . | . . . . . . Robot Schematics Acquired 3 | . . . . 3 . Robots Built . | . . . . . . Authchips . | . . . . . . Time . | . . . . . . Total Robot Build Rating . | . . . . . . Part Schematics Acquired 15 | . 1 . . 14 . Parts Built . | . . . . . . Authchips . | . . . . . . Time . | . . . . . . Total Part Build Rating . | . . . . . . Part Studies Acquired . | . . . . . . Parts Repaired 1 | . 1 . . . . Time 26 | . 26 . . . . Parts Recycled . | . . . . . . Recycled Matter . | . . . . . . Retrieved Matter . | . . . . . . Retrieved Components . | . . . . . . Parts Scanalyzed . | . . . . . . Part Schematics Acquired . | . . . . . . Parts Damaged . | . . . . . . Bothacking | -11 -10 -9 -9 -7 -7 ------------ Run | Yrd Mat Mat Min Zio Dee Used RIF Installer . | . . . . . . Robots Hacked . | . . . . . . Non-combat . | . . . . . . Combat . | . . . . . . Robot Hacks Applied . | . . . . . . Relay Couplers Released . | . . . . . . Fabnet Peak Effective % . | . . . . . . Robots Rewired . | . . . . . . Allies Hacked . | . . . . . . Hacks Repelled . | . . . . . . Allies | -11 -10 -9 -9 -7 -7 -------- Run | Yrd Mat Mat Min Zio Dee Total Allies . | . . . . . . Largest Group . | . . . . . . Highest-Rated Group . | . . . . . . Highest-Rated Ally . | . . . . . . Total Orders . | . . . . . . Ally Attacks . | . . . . . . Total Damage . | . . . . . . Kills . | . . . . . . Allies Corrupted . | . . . . . . Allies Melted . | . . . . . . Intel | -11 -10 -9 -9 -7 -7 ------- Run | Yrd Mat Mat Min Zio Dee Active Infowar (turns) 413 | . 56 357 . . . Optics 56 | . . 56 . . . Sensors 119 | . 56 63 . . . Seismic 301 | . . 301 . . . Robot Analysis Total . | . . . . . . Derelict Logs Recovered 3 | . . . 1 2 . Drone Launches . | . . . . . . Drone Recoveries . | . . . . . . Exploration | -11 -10 -9 -9 -7 -7 ------------- Run | Yrd Mat Mat Min Zio Dee Turns Passed 7386 | 76 1375 1248 2445 1825 417 Spaces Moved 3182 | 40 712 548 977 742 163 Core 2 | 2 . . . . . Treads 3004 | 38 712 372 977 742 163 Legs . | . . . . . . Wheels 176 | . . 176 . . . Hover . | . . . . . . Flight . | . . . . . . Fastest Speed 50 | 50 160 95 240 240 240 Average Speed 209 | 154 160 173 240 240 240 Slowest Speed 240 | 160 160 240 240 240 240 Overloaded Moves . | . . . . . . Propulsion Burnouts . | . . . . . . Robots Hopped . | . . . . . . Potential Cave-ins . | . . . . . . Cave-ins Triggered . | . . . . . . Exploration Rate (%) 58 | 4 94 54 99 78 24 Regions Visited 5 Branch Regions 3 Pre-discovered Areas 4 | . . . 1 3 . Known Exits Taken 1 | . . 1 . . . Unknown Exits Taken 4 | 1 1 . 1 1 . Scrap Searched 3 | . . . 1 2 . Spaces Dug 17 | . 3 2 12 . . Terrain Destroyed 32 | . 3 2 27 . . Melee . | . . . . . . Projectile 11 | . 3 2 6 . . AOE 21 | . . . 21 . . Terrain Rammed . | . . . . . . Walls Destroyed . | . . . . . . Machines Disabled . | . . . . . . Actions | -11 -10 -9 -9 -7 -7 --------- Run | Yrd Mat Mat Min Zio Dee Total 3613 | 51 847 717 1038 785 175 Wait 123 | . 57 39 12 14 1 Move 3177 | 39 711 547 976 741 163 Hop . | . . . . . . Pick Up 68 | 6 16 27 7 12 . Fast Attach 16 | 6 2 6 2 . . Attach 17 | . 3 6 3 2 3 Detach 1 | . . . 1 . . Swap 33 | . 6 17 7 3 . Drop 33 | . 4 13 6 10 . Fire 141 | . 48 60 22 3 8 Melee 2 | . . 2 . . . Ram . | . . . . . . Kick . | . . . . . . Crush 2 | . . . 2 . . Escape Stasis . | . . . . . . Rewire . | . . . . . . Trap . | . . . . . . Miscellaneous . | . . . . . . Route ------- -11/Scrapyard -10/Materials (discovered 4 exits: *Mat x3 / [*Min]) -9/Materials (discovered 2 exits: [*Mat] / *Min) -9/Mines (discovered 3 exits: [*Mat x2] / *Zio) -7/Zion -7/Deep Caves History --------- Turn | Location | Event 21 | -11/Scrapyard | Discovered new exit (range 16) 77 | -11/Scrapyard | Entered Materials 229 | -10/Materials | Discovered new exit (range 16) 277 | -10/Materials | Central database locked down 323 | -10/Materials | Build established: Mutant 584 | -10/Materials | Repaired Lgt. Armor Plating 614 | -10/Materials | Discovered new exit (range 7) 783 | -10/Materials | Discovered new exit (range 15) 985 | -10/Materials | Core integrity fell below 50% 1141 | -10/Materials | Discovered new exit (range 8) 1452 | -10/Materials | Entered another Materials area 1452 | -9/Materials | Evolved 2 slots: Propulsion x1, Utility x1 2016 | -9/Materials | Discovered new exit (range 15) 2234 | -9/Materials | Build established: Scavenger-Mutant 2475 | -9/Materials | Identified exit to Mines 2700 | -9/Materials | Entered Mines 2755 | -9/Mines | Lost 3 parts (1n1u1w) 3014 | -9/Mines | Discovered new exit (range 16) 3029 | -9/Mines | Build established: Mutant 3063 | -9/Mines | A Derelict revealed a hidden shortcut to a safe place 3167 | -9/Mines | Assembled infested the area 3175 | -9/Mines | Received a Rocket Launcher from a helpful Derelict 3299 | -9/Mines | Joined a pair of Derelicts in attacking an 0b10 outpost 3968 | -9/Mines | Learned location of Storage (-7) 3972 | -9/Mines | Discovered new exit (range 12) 5145 | -9/Mines | Entered Zion 5191 | -7/Zion | Acquired unknown access codes intercepted by a Zionite 5395 | -7/Zion | System corruption reached 10% 5419 | -7/Zion | System corruption cleaned by Quarantine Array 5436 | -7/Zion | Core integrity fell below 50% 5524 | -7/Zion | Learned location of Testing (-2) 5649 | -7/Zion | Learned Factory security intel 5689 | -7/Zion | Build established: Scavenger-Mutant 5819 | -7/Zion | Found Prototype Processor 5822 | -7/Zion | Found Prototype Processor 5826 | -7/Zion | Found Prototype Processor 5829 | -7/Zion | Found Prototype Processor 5832 | -7/Zion | Found Prototype Processor 6313 | -7/Zion | Build established: Mutant 6366 | -7/Zion | Found Unknown Piercing Weapon 6597 | -7/Zion | Learned location of Recycling (-7) 6678 | -7/Zion | Given the Hacking Drone Bay 6679 | -7/Zion | Found Prototype Device 6925 | -7/Zion | Opened final containment barrier to the Deep Caves 6958 | -7/Zion | Discovered new exit (range 5) 6963 | -7/Zion | Saw the warning signs outside the Deep Caves entrance 6970 | -7/Zion | Entered Deep Caves 7362 | -7/Deep Caves | Attacked by Z-Imprinter 7385 | -7/Deep Caves | Core integrity fell below 20% 7387 | -7/Deep Caves | Destroyed by Z-Imprinter with Zionite Laser-M Last Messages --------------- Containment barrier disabled. Signature recorded so we know who to blame when the place goes to hell. Again. 06958_ EXIT=FOUND 06963_ The room is plastered with warning signs of various forms. [Achievement: Signs Are For Wimps] LOCATION=UNKNOWN GOAL=ESCAPE 07351_ NEW_ZION: Z-Facility proximity alert. 07353_ WA-ALT(o) is busy at the terminal. 07356_ 17-7KT(o) is busy at the terminal. Z-Imprinter: GET AWAY FROM HERE! I've worked too hard for our future just to have you ruin everything! 07365_ WA-ALT(o) is busy at the terminal. 07375_ Z-Imprinter knocked back. 07376_ Assault Cannon destroyed. 07380_ Hrd. Medium Armor Plating destroyed. 07384_ Lgt. Treads destroyed. Map ----- +----------------------------------------------------+ | | | | | | | ?????????????????????????????????????????????????? | | ?????????????????????????????????????????????????? | | ?????????????????????????????????????????????????? | | ?????????????????????????????#???????????????????# | | ???????????????????????????## #??????######?????## | | ???????????????????????? ## # ????### ##????# | | ?????????????????????? ##### #????# | | ???????????????????? #?????# | | ?????????????????? ??????? | | ????????????????? #??????? | | ????????????????? #??????? | | ?????????????????"" ##?????? | | ?????????????????"" ####### | | ???????????????"""" | | ???????????????"""" | | ???????????????? %% | | ????????????????""" I ### | | ????????????????""" % ###?## | | ????????????????""" % z ##????## | | ??????????????""""" #??????# | | ????????????"" " " #??????? | | ?????????????""o o #????## | | ????????????"" @ #???## | | ?????????????""o #???# | | ?????????????"" ##??# | | ?????????????"""" #???# | | ???????????????""""o #??# | | ??????????????? #??## / | | ???????????????""" ##???### | | ???????????????"""" ##??????? | | ????????????????"""" #???????? | | ?????????????????""" ????????? | | ??????????????????"" ??????????? | | ??????????????????" ????????????? | | ??????????????????? ??????????????? | | ?????????????????? ????????????????? | | ????????????????????? ???????????????????? | | ??????????????????????? ?????????????????????? | | ?????????????????????????????????????????????????? | | ?????????????????????????????????????????????????? | | ?????????????????????????????????????????????????? | | ?????????????????????????????????????????????????? | | ?????????????????????????????????????????????????? | | ?????????????????????????????????????????????????? | | ?????????????????????????????????????????????????? | | ?????????????????????????????????????????????????? | | ?????????????????????????????????????????????????? | +----------------------------------------------------+ Best States ------------- Heat Dissipation 38 Energy Generation 14 Energy Capacity 280 Matter Stores 300 Matter Capacity 300 Sight Range 18 Robot Scan Range 14 Terrain Scan Density 10 Armor Coverage 225 Evasion (%) 41 Targeting Accuracy 8 Recoil Reduction 3 Item Schematics ----------------- Datajack | -10/Materials | Hacked Imp. Particle Charger | -7/Zion | Archive Component Analysis Suite | -7/Zion | Archive Adv. Shield Generator | -7/Zion | Archive Imp. Transmission Jammer | -7/Zion | Archive Plasma Cannon | -7/Zion | Archive Phase Shifter | -7/Zion | Archive Imp. Carbon-fiber Leg | -7/Zion | Archive Adv. Heat Sink | -7/Zion | Archive Hvy. Laser | -7/Zion | Archive Fusion Compressor | -7/Zion | Archive Med. Treads | -7/Zion | Archive Arc Projector | -7/Zion | Archive Arm. Leg | -7/Zion | Archive Lightning Gun | -7/Zion | Archive Robot Schematics ------------------ L-41 Fighter | -7/Zion | Archive T-07 Excavator | -7/Zion | Archive O-24 Administrator | -7/Zion | Archive Fabricated ------------ Nothing Repaired ---------- Lgt. Armor Plating | 67% | -10/Materials Studied --------- None Alien Tech Used ----------------- None Achievements -------------- Signs Are For Wimps Challenges ------------ None Game ------ Seed ZioniteGravjetTendrils Manual? 0 Play Time 00:50:25 Cumulative 74.5 hours Start 2026.02.22 @ 10:39:15 End 2026.02.22 @ 11:28:56 Sessions 1 Manual Loads 0 Difficulty Rogue Special Mode None Game No. 55 Rogue 55 Adventurer 0 Explorer 0 Win Type - Total 1 Types 1/0/0/0/0/0/0/0/0/0 Lore% 46 Gallery% 42 Achievement% 32 Wizard Run 0 Options --------- Layout 1 ASCII 1 Keyboard 0 Movement Mouse Keybinds 0 Fullscreen 1 Font 32/SmallcapsGlow Map View 50x35 Zoom Use 0% Tactical HUD 1 Map Filters NONE Filters NONE Steam 1 RUN: 5b4afb4d-94fc-45be-8660-e0e64307df89